bitfinex/quotes_ETHUSD_20241129
["timestamp","ask_amount","ask_price","bid_price","bid_amount"]
[1732906023390,2.78599,3589.4,3588.9,0.637275]
[1732906023621,2.78599,3589.4,3589.0,0.25956669]
[1732906023823,2.7861,3589.3,3589.1,0.25956669]
[1732906024127,2.7861,3589.3,3589.2,0.25956669]
[1732906024294,2.7861,3589.3,3588.9,0.637275]
[1732906024635,2.7861,3589.3,3589.0,0.40307871]
[1732906024834,2.78613,3589.2,3589.1,0.25936121]
[1732906025034,2.78613,3589.2,3589.0,0.1437175]
[1732906027437,2.7862,3589.2,3589.0,0.1437175]
[1732906027591,2.78621,3589.1,3589.0,0.1437175]
[1732906030491,0.7245,3589.4,3588.2,0.8147]
[1732906030727,2.78675,3588.5,3588.3,0.67277308]
[1732906030926,2.78675,3588.5,3588.2,0.8147]
[1732906030927,2.78675,3588.4,3588.2,0.8147]
[1732906031194,2.78675,3588.4,3588.3,0.25878945]
[1732906032534,2.78667,3588.6,3588.3,0.6661384]
[1732906032840,2.78662,3588.6,3588.4,0.25878945]
[1732906033032,2.78605,3589.3,3588.2,0.8147]
[1732906033243,2.78683,3588.3,3587.9,0.55]
[1732906033408,2.78685,3588.3,3588.0,0.25884733]
[1732906033618,2.78706,3588.0,3587.8,0.7971]
[1732906033797,2.78683,3588.3,3587.9,0.25886263]
[1732906034135,2.78683,3588.3,3588.0,0.25886263]
[1732906034340,2.78683,3588.3,3588.1,0.25886263]
[1732906034527,2.78668,3588.5,3588.2,0.25886263]
[1732906034694,3.51082,3589.0,3588.3,0.25886263]
[1732906034907,2.78673,3588.5,3588.1,0.4142168]
[1732906035107,2.78673,3588.5,3588.2,0.25888168]
[1732906035108,2.78677,3588.4,3588.2,0.25888168]
[1732906035307,2.7867,3588.5,3588.3,0.25888168]
[1732906035507,3.51082,3589.0,3588.4,0.25888168]
[1732906035508,5.57317,3588.7,3588.4,0.25888168]
[1732906035753,2.78658,3588.7,3588.5,0.25890941]
[1732906035903,2.78658,3588.7,3588.6,0.25890941]
[1732906036344,2.78658,3588.7,3588.6,0.25890392]
[1732906036708,2.78637,3588.9,3588.3,0.41424628]
[1732906036941,2.7866,3588.6,3588.4,0.25895804]
[1732906037141,2.7866,3588.6,3588.5,0.25895804]
[1732906039638,2.78582,3589.6,3589.0,2.78626]
[1732906039958,2.7857,3589.8,3589.1,3.60275]
[1732906040125,2.7857,3589.8,3589.2,3.45983624]
[1732906040446,2.78552,3590.0,3589.3,3.45969624]
[1732906040651,2.78564,3589.9,3589.4,0.67370624]
[1732906040811,2.78564,3589.9,3589.5,0.67370624]
[1732906041014,2.78564,3589.9,3589.6,0.25911778]
[1732906041216,2.78552,3590.0,3589.7,0.25911778]
[1732906041418,2.78552,3590.0,3589.8,0.25915767]
[1732906041616,2.78552,3590.0,3589.9,0.25915767]
[1732906045270,2.78552,3590.0,3589.9,0.6743779]
[1732906046274,2.78563,3589.9,3589.3,2.786]
[1732906046460,2.78563,3589.9,3589.4,1.0382237]
[1732906046656,2.78567,3589.8,3589.5,0.67517791]
[1732906046862,2.78567,3589.8,3589.6,0.67517791]
[1732906047067,2.78567,3589.8,3589.7,0.67517791]
[1732906048268,2.78552,3590.0,3589.7,0.67517791]
[1732906048474,5.57079,3590.2,3589.8,0.67517791]
[1732906048776,2.78544,3590.1,3589.9,0.67517791]
[1732906048948,2.78544,3590.1,3590.0,0.67517791]
[1732906049274,0.7245,3590.3,3590.0,0.67517791]
[1732906049461,3.50981,3590.3,3590.1,0.25968381]
[1732906049778,3.50981,3590.3,3590.2,0.25968381]
[1732906050262,2.78531,3590.3,3590.2,0.25968381]
[1732906050782,2.7854,3590.2,3589.8,0.7812]
[1732906050966,2.7854,3590.2,3589.8,1.137901]
[1732906051141,2.7854,3590.2,3589.9,0.26005882]
[1732906051333,2.7854,3590.2,3590.0,0.26005882]
[1732906051536,2.7854,3590.2,3590.1,0.26005882]
[1732906053372,4.0,3590.3,3589.8,3.923561]
[1732906053646,2.78513,3590.5,3589.9,3.43783754]
[1732906053966,2.78523,3590.4,3589.9,0.3923561]
[1732906054163,2.78513,3590.5,3589.9,0.3923561]
[1732906054360,2.78513,3590.5,3590.0,2.78549]
[1732906054561,5.57001,3590.7,3590.0,2.78549]
[1732906054763,5.57001,3590.7,3590.1,0.67446961]
[1732906054959,2.78507,3590.6,3590.1,0.67446961]
[1732906056270,2.78486,3590.9,3590.3,2.78522]
[1732906056588,2.7849,3590.8,3590.3,2.78522]
[1732906056792,2.78544,3590.1,3589.5,0.55]
[1732906056950,2.78528,3590.3,3589.7,2.78569]
[1732906057146,2.78543,3590.2,3589.5,3.33584]
[1732906057469,0.7245,3590.5,3589.5,0.55]
[1732906057645,2.78541,3590.2,3589.5,3.33589]
[1732906057842,2.78541,3590.2,3589.6,2.78581]
[1732906058083,2.78541,3590.2,3589.7,0.9951]
[1732906058457,2.78529,3590.3,3589.7,3.78083]
[1732906058649,2.98421,3591.7,3590.0,2.78551]
[1732906058650,2.78503,3590.7,3590.0,2.78551]
[1732906058973,2.7851,3590.6,3590.0,2.78551]
[1732906059146,2.7851,3590.6,3590.1,0.361701]
[1732906059547,2.78514,3590.5,3590.1,0.361701]
[1732906060682,2.78503,3590.7,3590.2,0.8315]
[1732906060884,2.78489,3590.8,3590.2,0.8315]
[1732906061087,2.78509,3590.6,3590.2,0.8315]
[1732906061448,2.78509,3590.6,3590.3,0.3978701]
[1732906062085,2.78509,3590.6,3590.2,0.8315]
[1732906062254,2.78544,3590.1,3589.8,0.7862]
[1732906064455,2.78541,3590.2,3589.8,0.7862]
[1732906064657,2.78546,3590.1,3589.8,0.7862]
[1732906065292,2.78551,3590.0,3589.8,0.7862]
[1732906065458,2.78551,3590.0,3589.8,1.26433]
[1732906066551,2.78555,3590.0,3589.8,1.26433]
[1732906067289,2.78553,3590.0,3589.8,1.26433]
[1732906068186,2.78544,3590.1,3589.8,1.26433]
[1732906069208,2.78544,3590.1,3589.8,0.7862]
[1732906069935,5.57095,3590.1,3589.8,0.7862]
[1732906070715,2.78552,3590.0,3589.8,0.7862]
[1732906070914,2.78574,3589.7,3589.3,0.7964]
[1732906071245,2.78574,3589.7,3589.4,0.358259]
[1732906075005,0.7245,3590.1,3589.3,0.7964]
[1732906075211,2.78598,3589.4,3588.9,0.7891]
[1732906075521,2.78598,3589.4,3588.9,3.7891]
[1732906076080,2.78598,3589.4,3588.9,6.57544]
[1732906076322,2.78593,3589.5,3589.0,0.936183]
[1732906076729,2.78576,3589.7,3589.0,0.936183]
[1732906076941,2.78528,3590.3,3589.6,1.3221]
[1732906077227,2.78536,3590.2,3589.6,4.10787]
[1732906077544,2.78536,3590.2,3589.8,0.55]
[1732906077823,2.78536,3590.2,3589.6,1.3221]
[1732906077824,2.78553,3590.0,3589.6,1.3221]
[1732906077982,5.57077,3590.2,3589.8,0.55]
[1732906078189,2.78536,3590.2,3589.8,0.55]
[1732906079424,2.78551,3590.1,3589.8,0.55]
[1732906080240,2.78522,3590.4,3589.8,0.55]
[1732906080241,2.78533,3590.3,3589.8,0.55]
[1732906080522,2.78521,3590.4,3589.8,0.55]
[1732906080688,2.78521,3590.4,3589.9,0.7304305]
[1732906081091,2.78534,3590.3,3589.9,0.7304305]
[1732906081794,2.78521,3590.4,3589.9,0.7304305]
[1732906082227,1.35441268,3594.5,3590.7,0.7765]
[1732906082228,0.7245,3591.3,3590.7,0.7765]
[1732906082433,2.78432,3591.6,3590.8,2.78482]
[1732906082639,3.413616,3591.6,3590.8,2.78482]
[1732906083124,3.413616,3591.6,3590.9,2.78478]
[1732906083125,0.629296,3591.6,3590.9,2.78478]
[1732906083337,0.7245,3591.7,3591.0,2.78469]
[1732906083530,2.78405,3591.9,3591.2,0.7677]
[1732906083531,2.7841,3591.9,3591.2,0.7677]
[1732906084030,2.7841,3591.9,3591.2,3.55225]
[1732906084234,0.02670814,3591.8,3591.2,0.7677]
[1732906084437,2.78426,3591.7,3590.8,2.78487]
[1732906084801,2.78441,3591.5,3590.9,2.78479]
[1732906085225,0.02852349,3591.4,3591.0,2.78468]
[1732906085609,2.78426,3591.7,3591.0,2.78468]
[1732906085944,2.78421,3591.7,3591.0,2.78469]
[1732906086125,2.78421,3591.7,3590.8,2.78489]
[1732906086336,0.02863245,3591.6,3590.9,0.355259]
[1732906086535,0.02863245,3591.6,3591.0,2.78468]
[1732906086912,0.02863245,3591.6,3590.9,0.355259]
[1732906087106,0.02863245,3591.6,3591.0,2.78468]
[1732906087312,2.78419,3591.7,3591.1,2.78464]
[1732906087512,0.02655639,3591.5,3591.1,2.78464]
[1732906087730,0.02485157,3591.6,3591.1,2.78464]
[1732906087903,0.02485157,3591.6,3591.0,2.78468]
[1732906087904,0.02660433,3591.4,3591.0,2.78468]
[1732906088107,0.02665491,3591.5,3591.0,2.78468]
[1732906088308,0.02660433,3591.4,3591.0,2.78468]
[1732906088545,2.78427,3591.6,3591.0,2.78468]
[1732906088849,0.02665491,3591.5,3591.0,2.78468]
[1732906090104,0.02665491,3591.5,3590.9,0.355259]
[1732906090105,0.02665491,3591.5,3591.1,2.78463]
[1732906090304,2.7842,3591.7,3591.1,2.78463]
[1732906090613,0.02668697,3591.6,3591.1,2.78463]
[1732906090809,0.02668697,3591.6,3590.9,0.355259]
[1732906091156,2.81776331,3591.6,3591.0,2.78472]
[1732906091306,2.81776331,3591.6,3591.0,3.4539739]
[1732906091511,2.81776331,3591.6,3591.1,2.78465]
[1732906091855,0.03343331,3591.6,3591.2,2.78454]
[1732906092009,0.03343331,3591.6,3591.1,2.78465]
[1732906092312,2.78413,3591.8,3591.1,2.78465]
[1732906092655,2.78413,3591.8,3591.2,2.78458]
[1732906092959,0.03698654,3591.7,3591.2,2.78458]
[1732906093123,0.0267562,3591.7,3591.2,2.78458]
[1732906093322,2.8109562,3591.7,3591.0,3.4539339]
[1732906093522,2.78427,3591.6,3591.0,3.4539339]
[1732906093724,2.78427,3591.6,3591.1,2.78464]
[1732906093926,0.03685794,3591.5,3591.1,2.78464]
[1732906094814,0.02660445,3591.5,3591.0,3.4539739]
[1732906095137,2.78432,3591.6,3591.0,3.4539739]
[1732906095309,2.78421,3591.7,3591.0,3.4539739]
[1732906095510,0.02870542,3591.5,3591.0,3.4539739]
[1732906095749,0.02671494,3591.6,3591.1,0.62388539]
[1732906095956,0.03352993,3591.4,3591.1,0.62388539]
[1732906096260,0.0286065,3591.3,3591.2,2.78451]
[1732906096746,2.78413,3591.8,3591.2,2.78451]
[1732906097216,0.03709541,3591.7,3591.2,2.78451]
[1732906097414,0.03709541,3591.7,3591.2,3.40382154]
[1732906098677,2.82130541,3591.7,3591.2,3.40382154]
[1732906098877,2.82130541,3591.7,3591.2,2.78451]
[1732906099080,0.02656576,3591.7,3591.3,0.7908]
[1732906099455,2.78391,3592.1,3591.5,2.78428]
[1732906100169,3.5083,3592.3,3591.7,2.78418]
[1732906100344,3.5083,3592.3,3591.7,2.78415]
[1732906100982,0.02690623,3592.2,3591.7,2.78415]
[1732906101845,2.7839,3592.1,3591.5,2.78431]
[1732906102035,0.02690623,3592.2,3591.5,0.663839]
[1732906102240,2.81082509,3592.0,3591.5,0.663839]
[1732906102442,2.78412,3591.8,3591.3,0.7908]
[1732906102857,0.02671993,3591.7,3591.4,2.78442]
[1732906103054,0.02671993,3591.7,3591.6,2.78427]
[1732906103365,1.2831172,3592.3,3591.5,2.78429]
[1732906103575,0.02878867,3592.2,3591.7,2.78414]
[1732906103947,2.78402,3592.0,3591.4,2.78442]
[1732906104146,0.02862525,3591.9,3591.4,2.78442]
[1732906104573,2.78405,3591.9,3591.4,2.78442]
[1732906104771,0.02675941,3591.8,3591.4,2.78442]
[1732906104974,0.02675941,3591.8,3591.4,3.448276]
[1732906105342,2.81087941,3591.8,3591.4,0.663856]
[1732906105982,0.02675941,3591.8,3591.4,0.663856]
[1732906106155,2.78401,3592.0,3591.5,2.78434]
[1732906106500,0.02692192,3591.9,3591.5,2.78434]
[1732906106845,0.02692192,3591.9,3591.4,2.7844]
[1732906107269,3.50824,3592.3,3591.6,2.78426]
[1732906107582,2.78381,3592.2,3591.5,2.78434]
[1732906107790,2.81089436,3592.2,3591.6,0.663834]
[1732906108292,0.02708436,3592.2,3591.6,0.663834]
[1732906108585,0.02708436,3592.2,3591.6,3.448094]
[1732906109075,2.81090436,3592.2,3591.6,0.663834]
[1732906109994,2.81090436,3592.2,3591.7,0.41638486]
[1732906110292,2.81090436,3592.2,3591.6,0.663834]
[1732906110293,2.81090436,3592.2,3591.8,0.41638486]
[1732906110494,2.81090436,3592.2,3591.9,0.41638486]
[1732906110646,2.81090436,3592.2,3591.6,0.663834]
[1732906110844,2.81090436,3592.2,3591.7,0.78906041]
[1732906111271,0.02708436,3592.2,3591.8,0.7812]
[1732906111684,2.78379,3592.3,3591.8,0.7812]
[1732906111884,0.02680737,3592.1,3591.8,0.7812]
[1732906112056,2.78379,3592.3,3591.8,0.7812]
[1732906112057,0.02685795,3592.2,3591.8,0.7812]
[1732906112386,2.78385,3592.2,3591.9,0.41669259]
[1732906112755,0.02525751,3592.1,3591.9,0.41669259]
[1732906112948,2.80914751,3592.1,3591.9,0.41669259]
[1732906113675,2.80914751,3592.1,3591.5,1.0343]
[1732906113861,2.80914751,3592.1,3591.6,0.660312]
[1732906114589,0.02525751,3592.1,3591.6,0.660312]
[1732906114763,2.78376,3592.3,3591.8,0.43410709]
[1732906114966,2.78381,3592.2,3591.8,0.43410709]
[1732906115173,2.81081694,3592.2,3591.9,0.93767132]
[1732906115372,2.81081694,3592.2,3591.8,0.43410709]
[1732906115690,0.02700694,3592.2,3591.6,2.78425]
[1732906115987,0.02700694,3592.2,3591.7,2.81198995]
[1732906116188,2.78366,3592.4,3591.7,2.78415]
[1732906116397,0.02696286,3592.3,3591.7,2.78415]
[1732906116799,2.78396,3592.1,3591.6,0.66306701]
[1732906117002,3.5085,3592.0,3591.5,0.7555]
[1732906117207,3.5085,3592.0,3591.1,0.77]
[1732906117208,2.78427,3591.7,3591.1,0.77]
[1732906117414,2.78446,3591.4,3590.8,0.77]
[1732906117702,3.50886,3591.5,3590.8,3.55488]
[1732906117868,3.50886,3591.5,3590.9,0.633982]
[1732906118266,0.7245,3591.5,3590.9,3.418782]
[1732906118463,0.7245,3591.5,3591.0,2.78467]
[1732906118695,2.7842,3591.7,3591.1,2.78466]
[1732906118904,2.78407,3591.9,3591.3,0.77]
[1732906119078,5.78352,3592.6,3591.6,2.7842]
[1732906119079,2.78373,3592.3,3591.6,2.7842]
[1732906119588,0.0332172,3592.2,3591.6,2.7842]
[1732906120285,0.0332172,3592.2,3591.7,0.7811]
[1732906120500,2.78386,3592.2,3591.7,0.7811]
[1732906120670,2.78396,3592.0,3591.4,0.7811]
[1732906120876,0.7245,3591.9,3591.0,6.56583]
[1732906121187,2.78418,3591.8,3591.1,0.962951]
[1732906121879,5.56836,3591.8,3591.1,0.962951]
[1732906122082,2.78418,3591.8,3591.1,0.962951]
[1732906122287,2.7843,3591.6,3591.1,0.962951]
[1732906122500,2.78421,3591.7,3591.1,0.962951]
[1732906122716,2.78421,3591.7,3591.2,0.4528781]
[1732906124010,2.7843,3591.6,3591.2,0.4528781]
[1732906124514,2.7843,3591.6,3591.0,3.56583]
[1732906124515,2.78465,3591.2,3590.4,1.0481]
[1732906124685,2.78467,3591.1,3590.4,3.55449]
[1732906124878,2.78465,3591.2,3590.4,0.7693]
[1732906125075,2.78474,3591.0,3590.5,0.355464]
[1732906129512,2.78482,3590.9,3590.5,0.355464]
[1732906130211,2.78464,3591.2,3590.5,0.355464]
[1732906130413,2.78464,3591.2,3590.5,3.16843229]
[1732906130619,2.78452,3591.3,3590.6,2.78502]
[1732906133424,2.78467,3591.1,3590.5,0.355464]
[1732906134209,0.7245,3591.6,3590.5,3.140544]
[1732906134210,2.78456,3591.3,3590.5,3.140544]
[1732906134526,2.78446,3591.4,3590.7,2.78496]
[1732906136936,2.7845,3591.3,3590.7,2.78496]
[1732906137937,2.78446,3591.4,3590.7,2.78496]
[1732906140412,2.78446,3591.4,3590.8,2.78487]
[1732906140821,2.78455,3591.3,3590.6,2.78498]
[1732906141114,5.56895,3591.4,3590.7,2.78495]
[1732906141359,2.78446,3591.4,3590.7,2.78495]
[1732906142205,2.78451,3591.3,3590.7,2.78495]
[1732906142405,2.78459,3591.2,3590.5,3.140514]
[1732906142627,2.78468,3591.1,3590.6,0.4188614]
[1732906142824,2.7846,3591.2,3590.6,2.78504]
[1732906143436,2.7346,3591.2,3590.6,2.78504]
[1732906144417,2.78446,3591.4,3590.8,2.78486]
[1732906145814,2.78451,3591.3,3590.6,5.57003]
[1732906146160,2.78451,3591.3,3590.7,2.78496]
[1732906146453,2.78451,3591.3,3590.7,3.446765]
[1732906147865,2.78446,3591.4,3590.7,3.446765]
[1732906148042,5.56896,3591.4,3590.7,3.446765]
[1732906148557,2.78458,3591.3,3590.7,3.446765]
[1732906148734,2.78446,3591.4,3590.7,3.446765]
[1732906149032,2.78461,3591.2,3590.7,3.446765]
[1732906151268,2.78475,3591.0,3590.7,0.661805]
[1732906151566,2.78493,3590.8,3590.1,0.7509]
[1732906151731,2.78495,3590.8,3590.1,0.7509]
[1732906151934,2.78495,3590.8,3590.2,2.78535]
[1732906152334,2.78499,3590.7,3590.2,2.78535]
[1732906152744,0.7245,3591.4,3590.2,0.660054]
[1732906153060,2.78472,3591.1,3590.5,2.78512]
[1732906153259,2.78452,3591.3,3590.5,2.78512]
[1732906153559,0.7245,3591.4,3590.8,2.78485]
[1732906153560,2.78445,3591.4,3590.8,2.78485]
[1732906154364,0.7245,3591.7,3590.8,2.78485]
[1732906154666,2.78457,3591.3,3590.6,3.53592]
[1732906154967,2.78465,3591.2,3590.6,3.53592]
[1732906155524,2.78465,3591.2,3590.7,2.78496]
[1732906157530,2.78465,3591.2,3590.6,0.7509]
[1732906157742,2.78465,3591.2,3590.6,3.53594]
[1732906159440,1.35164964,3591.4,3590.6,1.410884]
[1732906159775,2.78465,3591.2,3590.6,1.410884]
[1732906160212,0.7245,3591.1,3590.4,1.1069]
[1732906160366,2.78534,3590.3,3590.0,0.8281]
[1732906160566,2.78537,3590.2,3589.4,2.78595]
[1732906160789,2.78536,3590.2,3589.7,0.8281]
[1732906161097,2.78557,3590.0,3589.7,0.8281]
[1732906162400,2.78536,3590.2,3589.7,0.8281]
[1732906162958,2.78523,3590.4,3589.8,2.78559]
[1732906165386,2.78523,3590.4,3589.7,4.281703]
[1732906165387,2.78533,3590.3,3589.7,4.281703]
[1732906167591,2.78533,3590.3,3589.7,1.495963]
[1732906167901,2.78567,3589.8,3589.4,0.2788]
[1732906168067,2.78565,3589.9,3589.4,0.2788]
[1732906168268,3.51004,3590.0,3589.4,0.2788]
[1732906168473,2.78566,3589.9,3589.4,0.2788]
[1732906168673,2.78566,3589.9,3589.4,1.246715]
[1732906169202,3.51004,3590.0,3589.4,1.246715]
[1732906169203,2.78567,3589.8,3589.4,1.246715]
[1732906171106,2.78554,3590.0,3589.4,1.246715]
[1732906171285,5.57111,3590.0,3589.4,1.246715]
[1732906171863,2.78554,3590.0,3589.4,1.246715]
[1732906172208,2.78559,3589.9,3589.4,1.246715]
[1732906174509,2.78559,3589.9,3589.4,4.032675]
[1732906175063,0.7245,3590.4,3589.4,0.2788]
[1732906175262,2.78606,3589.3,3588.9,0.7748]
[1732906175475,5.57186,3589.5,3588.9,0.7748]
[1732906175686,2.7859,3589.5,3588.9,0.7748]
[1732906175891,2.7859,3589.5,3588.9,3.56115]
[1732906176116,2.7859,3589.5,3589.0,0.84978142]
[1732906176262,2.7859,3589.5,3589.0,0.93649381]
[1732906176463,2.78596,3589.5,3588.9,3.56115]
[1732906176689,3.51028,3589.7,3588.9,4.223797]
[1732906177075,3.51028,3589.7,3589.0,0.67635129]
[1732906177411,2.78595,3589.5,3589.0,0.43355852]
[1732906178306,3.51028,3589.7,3588.9,4.223797]
[1732906178307,0.7245,3589.7,3588.9,0.7748]
[1732906178610,2.78582,3589.6,3588.7,0.7677]
[1732906178792,0.7245,3590.0,3589.0,0.7966]
[1732906179100,2.78583,3589.6,3589.0,3.58284]
[1732906179871,2.78593,3589.5,3589.0,3.58284]
[1732906181508,2.78593,3589.5,3589.0,0.7966]
[1732906182516,2.78631,3589.0,3588.7,0.7825]
[1732906184137,2.78644,3588.8,3588.7,0.7825]
[1732906185777,2.78644,3588.8,3588.4,0.7594]
[1732906186385,5.57296,3588.8,3588.4,0.7594]
[1732906186717,2.78667,3588.5,3588.1,1.0818]
[1732906186915,2.78685,3588.3,3588.1,1.0818]
[1732906187211,2.78685,3588.3,3588.1,0.8033]
[1732906187716,2.78667,3588.5,3588.1,0.8033]
[1732906189529,2.78656,3588.7,3588.1,1.468914]
[1732906189735,2.63560957,3588.7,3588.1,1.468914]
[1732906190789,2.78661,3588.6,3588.1,1.468914]
[1732906190990,2.63560957,3588.7,3588.1,1.468914]
[1732906191199,2.7866,3588.6,3588.1,1.468914]
[1732906191397,2.78661,3588.6,3588.1,1.468914]
[1732906193113,2.7865,3588.8,3588.1,4.255864]
[1732906193286,2.78661,3588.6,3588.1,4.255864]
[1732906193685,2.78661,3588.6,3588.1,1.468914]
[1732906193884,2.78649,3588.8,3588.2,2.78683]
[1732906195441,2.78649,3588.8,3588.3,0.8242]
[1732906197238,2.78624,3589.1,3588.5,2.78663]
[1732906197400,2.78617,3589.2,3588.5,2.78663]
[1732906197606,2.78604,3589.4,3588.6,0.8201]
[1732906197901,2.78617,3589.2,3588.6,3.99795956]
[1732906198942,2.78643,3588.9,3588.6,0.8201]
[1732906199112,2.78642,3588.9,3588.6,0.8201]
[1732906200222,2.28629,3589.0,3588.6,0.8201]
[1732906201322,2.78649,3588.8,3588.6,0.8201]
[1732906201527,0.7245,3589.1,3588.3,0.7813]
[1732906201723,2.7868,3588.4,3588.0,0.7813]
[1732906202049,2.78629,3589.0,3588.0,1.166]
[1732906202050,2.78642,3588.9,3588.0,1.166]
[1732906202216,2.78688,3588.3,3588.0,0.7813]
[1732906202616,2.78697,3588.2,3587.7,0.7813]
[1732906202830,2.78677,3588.4,3587.7,0.7813]
[1732906203031,2.78684,3588.3,3587.8,2.78721]
[1732906203616,2.78692,3588.2,3587.7,0.7813]
[1732906203947,2.78692,3588.2,3587.8,0.384712]
[1732906204301,2.78684,3588.3,3587.8,0.384712]
[1732906205049,2.78692,3588.2,3587.8,0.384712]
[1732906206053,2.78677,3588.4,3587.8,0.384712]
[1732906206206,2.78677,3588.4,3587.8,3.171862]
[1732906206543,2.78622,3589.1,3587.8,3.171862]
[1732906206544,2.78605,3589.4,3588.1,0.7736]
[1732906206748,2.78644,3588.9,3588.3,3.56042]
[1732906207050,2.78646,3588.8,3588.3,3.56039]
[1732906207240,2.78646,3588.8,3588.3,0.7736]
[1732906207449,2.78681,3588.4,3588.0,0.8235]
[1732906207849,2.78681,3588.4,3588.1,0.2785]
[1732906208536,2.78683,3588.3,3588.1,0.2785]
[1732906209106,2.78691,3588.2,3588.1,0.2785]
[1732906209752,2.78691,3588.2,3587.6,0.2785]
[1732906210054,2.78692,3588.2,3587.7,0.8214]
[1732906210210,2.78716,3587.9,3587.7,0.8214]
[1732906210411,2.78722,3587.8,3587.4,0.8214]
[1732906210923,2.78736,3587.7,3587.4,0.8214]
[1732906211129,2.78734,3587.7,3587.4,0.8214]
[1732906211322,2.78719,3587.9,3587.4,0.8214]
[1732906212351,2.78709,3588.0,3587.4,3.60889]
[1732906212508,3.5115,3588.1,3587.4,4.248552]
[1732906212712,2.78714,3587.9,3587.4,4.248552]
[1732906213353,2.78714,3587.9,3587.4,1.461062]
[1732906213557,2.78714,3587.9,3587.4,0.8214]
[1732906213847,2.78723,3587.8,3587.4,0.8214]
[1732906214941,2.78714,3587.9,3587.4,0.8214]
[1732906215364,3.51151,3588.1,3587.4,0.8214]
[1732906215537,2.78718,3587.9,3587.4,0.8214]
[1732906216438,3.5115,3588.1,3587.4,0.8214]
[1732906216644,3.5115,3588.1,3587.4,3.60886]
[1732906217451,2.78716,3587.9,3587.4,0.8214]
[1732906219349,2.78723,3587.8,3587.4,0.8214]
[1732906219770,2.78731,3587.7,3587.4,0.8214]
[1732906220888,2.78716,3587.9,3587.4,0.8214]
[1732906221043,5.57438,3587.9,3587.4,0.8214]
[1732906221452,2.78716,3587.9,3587.4,0.8214]
[1732906222177,2.78716,3587.9,3587.4,3.60892]
[1732906223170,2.78716,3587.9,3587.4,0.8214]
[1732906225381,2.78723,3587.8,3587.4,0.8214]
[1732906225691,2.7873,3587.7,3587.4,0.8214]
[1732906226047,2.78739,3587.6,3587.4,0.8214]
[1732906226368,2.78731,3587.7,3587.4,0.8214]
[1732906227779,2.78743,3587.6,3587.4,0.8214]
[1732906227979,2.78736,3587.7,3587.4,0.8214]
[1732906228186,2.78742,3587.6,3587.4,0.8214]
[1732906228951,2.78745,3587.5,3587.4,0.8214]
[1732906229150,2.78722,3587.8,3586.8,3.7571]
[1732906229349,2.78781,3587.1,3586.8,0.7571]
[1732906229548,2.78792,3586.9,3586.8,0.7571]
[1732906229979,2.78809,3586.7,3586.5,0.7959]
[1732906230658,2.78792,3586.9,3586.5,0.7959]
[1732906231382,2.78824,3586.5,3586.1,0.7635]
[1732906232190,2.78812,3586.7,3586.1,0.7635]
[1732906232348,2.78818,3586.6,3586.1,0.7635]
[1732906232548,0.05552043,3586.5,3586.1,0.7635]
[1732906232758,0.05552043,3586.5,3586.1,1.397585]
[1732906232968,0.05552043,3586.5,3586.1,0.7635]
[1732906233469,2.78836,3586.4,3586.1,0.2635]
[1732906233665,0.05552043,3586.5,3586.1,0.2635]
[1732906234187,2.84377043,3586.5,3586.1,0.2635]
[1732906238574,2.84377043,3586.5,3586.2,1.19702775]
[1732906238764,2.84377043,3586.5,3586.3,0.6765809]
[1732906238966,2.84377043,3586.5,3586.2,0.52044685]
[1732906239167,2.84377043,3586.5,3586.3,0.52044685]
[1732906239503,2.84377043,3586.5,3586.1,0.69726965]
[1732906240301,2.78843,3586.3,3586.1,0.43376965]
[1732906240504,2.78843,3586.3,3586.0,0.43376965]
[1732906240667,0.0552301,3586.2,3586.0,0.43376965]
[1732906241064,3.07262704,3586.5,3586.0,0.43376965]
[1732906241065,2.78816,3586.6,3586.0,3.22233965]
[1732906241271,0.05518141,3586.1,3586.0,4.5926245]
[1732906241491,2.78781,3587.1,3586.6,0.7924]
[1732906241868,0.05555791,3587.0,3586.6,1.22589741]
[1732906242099,2.84339791,3587.0,3586.6,1.22589741]
[1732906242305,0.05555791,3587.0,3586.6,1.22589741]
[1732906242515,2.78794,3586.9,3586.6,1.22589741]
[1732906242691,0.05555791,3587.0,3586.6,1.22589741]
[1732906242890,2.84339791,3587.0,3586.6,1.22589741]
[1732906243072,0.05555791,3587.0,3586.7,3.22154741]
[1732906243479,2.78759,3587.4,3586.7,3.78893302]
[1732906243772,2.78767,3587.3,3586.7,3.22154741]
[1732906244300,0.7635,3587.6,3586.8,0.43349741]
[1732906244504,1.35352885,3587.5,3586.7,0.43349741]
[1732906244672,2.78807,3586.7,3586.4,0.43349741]
[1732906245026,2.78823,3586.5,3586.3,0.43349741]
[1732906245170,0.05546003,3586.6,3586.2,1.22589741]
[1732906245171,2.78831,3586.4,3586.2,1.22589741]
[1732906245471,0.05536729,3586.4,3586.2,1.22600805]
[1732906245873,2.78822,3586.6,3586.2,0.7924]
[1732906246137,0.05532091,3586.3,3586.2,1.22600805]
[1732906246415,0.05533895,3586.3,3586.2,1.22600805]
[1732906246568,2.78794,3586.9,3586.2,0.7924]
[1732906246775,2.78794,3586.9,3586.3,0.43357872]
[1732906247093,2.84364143,3586.8,3586.3,0.43357872]
[1732906247473,2.84364143,3586.8,3586.4,0.43357872]
[1732906248036,2.78809,3586.7,3586.3,0.43357872]
[1732906248240,2.84364143,3586.8,3586.3,0.43357872]
[1732906248404,0.05555673,3586.6,3586.3,0.43357872]
[1732906248600,2.78801,3586.8,3586.3,0.43357872]
[1732906248936,0.05551037,3586.5,3586.3,0.43357872]
[1732906249142,2.78801,3586.8,3586.3,0.43357872]
[1732906249299,0.05548203,3586.4,3586.3,3.22194872]
[1732906249642,0.05550007,3586.4,3586.3,3.22195872]
[1732906249846,0.7635,3587.1,3586.4,3.33824]